bitfinex/quotes_BTCUSD_20240921
["timestamp","ask_amount","ask_price","bid_price","bid_amount"]
[1726918301430,0.001825,63155.0,63154.0,1.85067089]
[1726918301645,0.001825,63155.0,63154.0,2.16735689]
[1726918302097,0.000825,63155.0,63154.0,2.16735689]
[1726918302307,0.000825,63155.0,63154.0,2.16835689]
[1726918305427,0.000825,63155.0,63154.0,2.26835689]
[1726918306625,0.000825,63155.0,63154.0,2.43141056]
[1726918307312,0.000825,63155.0,63154.0,2.42941056]
[1726918318893,0.000825,63155.0,63154.0,1.82819121]
[1726918319099,0.000825,63155.0,63154.0,1.52919121]
[1726918320205,0.000825,63155.0,63154.0,1.52719121]
[1726918321079,0.000825,63155.0,63154.0,1.52819121]
[1726918321291,0.000825,63155.0,63154.0,1.52719121]
[1726918321734,0.000825,63155.0,63154.0,1.52619121]
[1726918322389,0.000825,63155.0,63154.0,1.52719121]
[1726918328357,0.000825,63155.0,63154.0,1.21050521]
[1726918328621,0.01733953,63155.0,63154.0,1.21050521]
[1726918329686,0.01833953,63155.0,63154.0,1.21050521]
[1726918330086,0.01833953,63155.0,63154.0,1.20950521]
[1726918330539,0.02033953,63155.0,63154.0,1.20950521]
[1726918330757,0.003825,63155.0,63154.0,1.20950521]
[1726918330967,0.01931065,63155.0,63154.0,1.20950521]
[1726918331187,0.002825,63155.0,63154.0,1.20950521]
[1726918331411,0.02131065,63155.0,63154.0,1.20950521]
[1726918333471,0.02133548,63155.0,63154.0,1.20950521]
[1726918333976,0.004825,63155.0,63154.0,1.20950521]
[1726918334196,0.02134201,63155.0,63154.0,1.20950521]
[1726918334893,0.004825,63155.0,63154.0,1.20950521]
[1726918338235,0.02143373,63155.0,63154.0,1.20950521]
[1726918338462,0.02143654,63155.0,63154.0,1.20950521]
[1726918338943,0.004825,63155.0,63154.0,1.20950521]
[1726918339630,0.02142841,63155.0,63154.0,1.20950521]
[1726918340332,0.02142775,63155.0,63154.0,1.20950521]
[1726918340558,0.004825,63155.0,63154.0,1.20950521]
[1726918340786,0.02142512,63155.0,63154.0,1.20950521]
[1726918341472,0.0214154,63155.0,63154.0,1.20950521]
[1726918342860,0.004825,63155.0,63154.0,1.20950521]
[1726918345181,0.004825,63155.0,63154.0,1.33098489]
[1726918346088,0.02148244,63155.0,63154.0,1.33098489]
[1726918346325,0.004825,63155.0,63154.0,1.33098489]
[1726918346559,0.02148552,63155.0,63154.0,1.33098489]
[1726918347044,0.004825,63155.0,63154.0,1.33098489]
[1726918347512,0.02146279,63155.0,63154.0,1.33098489]
[1726918350610,0.004825,63155.0,63154.0,1.33098489]
[1726918351716,0.004825,63155.0,63154.0,1.32434079]
[1726918352176,0.02145297,63155.0,63154.0,1.32434079]
[1726918353501,0.004825,63155.0,63154.0,1.32434079]
[1726918357223,0.02146256,63155.0,63154.0,1.32434079]
[1726918358110,0.004825,63155.0,63154.0,1.32434079]
[1726918358335,0.02146691,63155.0,63154.0,1.32434079]
[1726918361310,0.02146691,63155.0,63154.0,1.33837148]
[1726918361540,0.02146959,63155.0,63154.0,1.33837148]
[1726918361782,0.02146959,63155.0,63154.0,1.33837221]
[1726918362415,0.004825,63155.0,63154.0,1.33837221]
[1726918363067,0.02148887,63155.0,63154.0,1.33837221]
[1726918363710,0.004825,63155.0,63154.0,1.33837221]
[1726918364859,0.004825,63155.0,63154.0,1.32434079]
[1726918365303,0.004825,63155.0,63154.0,1.33836859]
[1726918365754,0.02148079,63155.0,63154.0,1.33836859]
[1726918366341,0.02148348,63155.0,63154.0,1.33836859]
[1726918367524,0.004825,63155.0,63154.0,1.33836859]
[1726918368142,0.004825,63155.0,63154.0,1.32434079]
[1726918368572,0.02148665,63155.0,63154.0,1.32434079]
[1726918368774,0.004825,63155.0,63154.0,1.33836824]
[1726918368982,0.02148497,63155.0,63154.0,1.21688856]
[1726918370848,0.02148497,63155.0,63154.0,0.90020256]
[1726918371735,0.02148497,63155.0,63154.0,0.88617511]
[1726918371991,0.02148497,63155.0,63154.0,0.9001944]
[1726918372886,0.02148497,63155.0,63154.0,0.90019568]
[1726918373326,0.02148497,63155.0,63154.0,0.90019477]
[1726918374528,0.02148497,63155.0,63154.0,0.88617511]
[1726918374961,0.004825,63155.0,63154.0,0.88617511]
[1726918375400,0.02148472,63155.0,63154.0,0.88617511]
[1726918379442,0.01748472,63155.0,63154.0,0.88617511]
[1726918379659,0.02648472,63155.0,63154.0,0.88617511]
[1726918380320,0.01748472,63155.0,63154.0,0.88617511]
[1726918380745,0.02648472,63155.0,63154.0,0.88617511]
[1726918381442,0.03548472,63155.0,63154.0,0.88617511]
[1726918381656,0.02648472,63155.0,63154.0,0.88617511]
[1726918382150,0.03548472,63155.0,63154.0,0.88617511]
[1726918382571,0.03547038,63155.0,63154.0,0.88617511]
[1726918384309,0.03546264,63155.0,63154.0,0.88617511]
[1726918387295,0.02646264,63155.0,63154.0,0.88617511]
[1726918387740,0.03546264,63155.0,63154.0,0.88617511]
[1726918388419,0.01746264,63155.0,63154.0,0.88617511]
[1726918388635,0.02446264,63155.0,63154.0,0.88617511]
[1726918389959,0.03146264,63155.0,63154.0,0.88617511]
[1726918391004,0.014825,63155.0,63154.0,0.88617511]
[1726918391220,0.03146554,63155.0,63154.0,0.88617511]
[1726918392333,0.03146554,63155.0,63154.0,1.20286111]
[1726918397889,0.014825,63155.0,63154.0,1.20286111]
[1726918398109,0.03141502,63155.0,63154.0,1.20286111]
[1726918401342,0.014825,63155.0,63154.0,1.20286111]
[1726918401787,0.03141585,63155.0,63154.0,1.20286111]
[1726918404844,0.03145654,63155.0,63154.0,1.20286111]
[1726918405390,0.03144145,63155.0,63154.0,1.20286111]
[1726918405836,0.03144145,63155.0,63154.0,0.88617511]
[1726918407920,0.10273211,63155.0,63154.0,0.88617511]
[1726918409042,0.03144145,63155.0,63154.0,0.88617511]
[1726918409257,0.10272795,63155.0,63154.0,0.88617511]
[1726918409468,0.03144145,63155.0,63154.0,0.88617511]
[1726918410590,0.10272795,63155.0,63154.0,0.88617511]
[1726918410850,0.03144145,63155.0,63154.0,0.88617511]
[1726918411286,0.06234695,63155.0,63154.0,0.88617511]
[1726918411730,0.07892169,63155.0,63154.0,0.88617511]
[1726918412153,0.06234695,63155.0,63154.0,0.88617511]
[1726918412364,0.07891238,63155.0,63154.0,0.88617511]
[1726918414795,0.03139043,63155.0,63154.0,0.88617511]
[1726918415007,0.014825,63155.0,63154.0,0.88617511]
[1726918415525,0.09549351,63155.0,63154.0,0.88617511]
[1726918415759,0.07892797,63155.0,63154.0,0.88617511]
[1726918416877,0.03139493,63155.0,63154.0,0.88617511]
[1726918417555,0.07892779,63155.0,63154.0,0.88617511]
[1726918418730,0.07893709,63155.0,63154.0,0.88617511]
[1726918418964,0.07893725,63155.0,63154.0,0.88617511]
[1726918419418,0.07893722,63155.0,63154.0,0.88617511]
[1726918419856,0.07893715,63155.0,63154.0,0.88617511]
[1726918420708,0.03140423,63155.0,63154.0,0.88617511]
[1726918421871,0.0789371,63155.0,63154.0,0.88617511]
[1726918422363,0.07893691,63155.0,63154.0,0.88617511]
[1726918422834,0.03140423,63155.0,63154.0,0.88617511]
[1726918423296,0.07893688,63155.0,63154.0,0.88617511]
[1726918428415,0.03140423,63155.0,63154.0,0.88617511]
[1726918428943,0.03142663,63155.0,63154.0,0.88617511]
[1726918429180,0.13032663,63155.0,63154.0,0.88617511]
[1726918435243,0.03142663,63155.0,63154.0,0.88617511]
[1726918435695,0.03150884,63155.0,63154.0,0.88617511]
[1726918438036,0.12657352,63155.0,63154.0,0.88617511]
[1726918438281,0.32537057,63155.0,63154.0,0.88617511]
[1726918438520,0.23030589,63155.0,63154.0,0.88617511]
[1726918438991,0.32537057,63155.0,63154.0,0.88617511]
[1726918439224,0.32525883,63155.0,63154.0,0.88617511]
[1726918439700,0.0313971,63155.0,63154.0,0.88617511]
[1726918441355,0.014825,63155.0,63154.0,0.88617511]
[1726918441574,0.07892063,63155.0,63154.0,0.88617511]
[1726918442025,0.07892049,63155.0,63154.0,0.88617511]
[1726918442496,0.03138813,63155.0,63154.0,0.88617511]
[1726918442714,0.07892049,63155.0,63154.0,0.88617511]
[1726918443627,0.03138813,63155.0,63154.0,0.88617511]
[1726918444549,0.03140384,63155.0,63154.0,0.88617511]
[1726918447308,0.03141635,63155.0,63154.0,0.88617511]
[1726918447775,0.014825,63155.0,63154.0,0.88617511]
[1726918448005,0.03141748,63155.0,63154.0,0.88617511]
[1726918449638,0.10271727,63155.0,63154.0,0.88617511]
[1726918450831,0.08612479,63155.0,63154.0,0.88617511]
[1726918451082,0.10271004,63155.0,63154.0,0.88617511]
[1726918454131,0.08612479,63155.0,63154.0,0.88617511]
[1726918454365,0.10270328,63155.0,63154.0,0.88617511]
[1726918458822,0.10270328,63155.0,63154.0,1.20286111]
[1726918459058,0.10270328,63155.0,63154.0,1.29986111]
[1726918459304,0.07895716,63155.0,63154.0,1.29986111]
[1726918460468,0.0788614,63155.0,63154.0,1.29986111]
[1726918460941,0.07885999,63155.0,63154.0,1.29986111]
[1726918461445,0.07885943,63155.0,63154.0,1.29986111]
[1726918462822,0.03130717,63155.0,63154.0,1.29986111]
[1726918466637,0.014825,63155.0,63154.0,1.29986111]
[1726918466885,0.03133998,63155.0,63154.0,1.29986111]
[1726918469889,0.014825,63155.0,63154.0,1.29986111]
[1726918470112,0.03133698,63155.0,63154.0,1.29986111]
[1726918475391,0.014825,63155.0,63154.0,1.61654711]
[1726918476098,0.014825,63155.0,63154.0,1.29986111]
[1726918476553,0.014825,63155.0,63154.0,1.61654711]
[1726918476835,0.014825,63155.0,63154.0,1.85730078]
[1726918477753,0.007825,63155.0,63154.0,1.85730078]
[1726918478007,0.008825,63155.0,63154.0,1.85730078]
[1726918478672,0.000825,63155.0,63154.0,1.85730078]
[1726918479113,0.001825,63155.0,63154.0,1.85830078]
[1726918479339,0.001825,63155.0,63154.0,1.85730078]
[1726918479340,0.000825,63155.0,63154.0,1.85730078]
[1726918479823,0.001825,63155.0,63154.0,1.85830078]
[1726918480264,0.002825,63155.0,63154.0,1.86030078]
[1726918484829,0.001825,63155.0,63154.0,1.97978046]
[1726918485046,0.001825,63155.0,63154.0,1.20386111]
[1726918485272,0.002825,63155.0,63154.0,1.20486111]
[1726918485492,0.001825,63155.0,63154.0,1.20386111]
[1726918485707,0.001825,63155.0,63154.0,1.32534079]
[1726918486163,0.002825,63155.0,63154.0,1.32634079]
[1726918486380,0.002825,63155.0,63154.0,1.20386111]
[1726918486381,0.001825,63155.0,63154.0,1.20386111]
[1726918486845,0.001825,63155.0,63154.0,1.20286111]
[1726918487295,0.002825,63155.0,63154.0,1.20286111]
[1726918487540,0.000825,63155.0,63154.0,1.20286111]
[1726918488013,0.005825,63155.0,63154.0,1.20286111]
[1726918488934,0.010825,63155.0,63154.0,1.20286111]
[1726918493139,0.010825,63155.0,63154.0,1.32434079]
[1726918497375,0.005825,63155.0,63154.0,1.32434079]
[1726918497838,0.006825,63155.0,63154.0,1.32434079]
[1726918498758,0.001825,63155.0,63154.0,1.32434079]
[1726918499233,0.002825,63155.0,63154.0,1.32434079]
[1726918502200,0.002825,63155.0,63154.0,1.41524079]
[1726918504493,0.002825,63155.0,63154.0,1.20286111]
[1726918506327,0.01954439,63155.0,63154.0,1.20286111]
[1726918506524,0.002825,63155.0,63154.0,1.20286111]
[1726918507014,0.01955137,63155.0,63154.0,1.20286111]
[1726918507653,0.002825,63155.0,63154.0,1.20286111]
[1726918508164,0.03131288,63155.0,63154.0,0.88617511]
[1726918508414,0.01956398,63155.0,63154.0,0.88617511]
[1726918508882,0.01756398,63155.0,63154.0,0.88617511]
[1726918509106,0.04831236,63155.0,63154.0,0.88617511]
[1726918509333,0.03562792,63155.0,63154.0,0.88617511]
[1726918509572,0.02662792,63155.0,63154.0,0.88617511]
[1726918509803,0.01762792,63155.0,63154.0,0.88617511]
[1726918510388,0.02662792,63155.0,63154.0,0.88617511]
[1726918510641,0.03562792,63155.0,63154.0,0.88617511]
[1726918511840,0.02662792,63155.0,63154.0,0.88617511]
[1726918512063,0.01762792,63155.0,63154.0,0.88617511]
[1726918512283,0.03362792,63155.0,63154.0,0.88617511]
[1726918512780,0.016825,63155.0,63154.0,0.88617511]
[1726918513023,0.03358695,63155.0,63154.0,0.88617511]
[1726918516262,0.016825,63155.0,63154.0,0.88617511]
[1726918516502,0.03354184,63155.0,63154.0,0.88617511]
[1726918519835,0.016825,63155.0,63154.0,0.88617511]
[1726918520067,0.03354078,63155.0,63154.0,0.88617511]
[1726918523196,0.03354984,63155.0,63154.0,0.88617511]
[1726918526683,0.0335062,63155.0,63154.0,0.88617511]
[1726918531624,0.0335062,63155.0,63154.0,0.871777]
[1726918531762,0.0335062,63155.0,63154.0,0.88629256]
[1726918535666,0.016825,63155.0,63154.0,0.88629256]
[1726918535890,0.0335422,63155.0,63154.0,0.88629256]
[1726918540731,0.03354473,63155.0,63154.0,1.20297856]
[1726918543868,0.016825,63155.0,63154.0,1.20297856]
[1726918544097,0.03351522,63155.0,63154.0,1.20297856]
[1726918544330,0.03350988,63155.0,63154.0,1.20297856]
[1726918547290,0.016825,63155.0,63154.0,1.20297856]
[1726918547524,0.03352595,63155.0,63154.0,1.20297856]
[1726918552895,0.03346149,63155.0,63154.0,1.20297856]
[1726918553804,0.03346149,63155.0,63154.0,0.88629256]
[1726918554492,0.03346149,63155.0,63154.0,1.20297856]
[1726918555234,0.03346149,63155.0,63154.0,0.88629256]
[1726918560325,0.03352558,63155.0,63154.0,0.88629256]
[1726918562657,0.03352985,63155.0,63154.0,0.88629256]
[1726918564279,0.08107936,63155.0,63154.0,0.88629256]
[1726918565878,0.08110568,63155.0,63154.0,0.88629256]
[1726918566994,0.08110747,63155.0,63154.0,0.88629256]
[1726918568352,0.08110747,63155.0,63154.0,1.20297856]
[1726918569560,0.03355617,63155.0,63154.0,1.20297856]
[1726918569782,0.02555617,63155.0,63154.0,1.20297856]
[1726918570000,0.01755617,63155.0,63154.0,1.20297856]
[1726918570235,0.02355617,63155.0,63154.0,1.20297856]
[1726918570464,0.02855617,63155.0,63154.0,1.20297856]
[1726918570682,0.02255617,63155.0,63154.0,1.20297856]
[1726918571121,0.02755617,63155.0,63154.0,1.20297856]
[1726918572245,0.010825,63155.0,63154.0,1.20297856]
[1726918572482,0.0275319,63155.0,63154.0,1.20297856]
[1726918573167,0.0750857,63155.0,63154.0,1.20297856]
[1726918574313,0.0275319,63155.0,63154.0,1.20297856]
[1726918574539,0.0750857,63155.0,63154.0,1.20297856]
[1726918575956,0.07508526,63155.0,63154.0,1.20297856]
[1726918576670,0.07508538,63155.0,63154.0,1.20297856]
[1726918577378,0.0275319,63155.0,63154.0,1.20297856]
[1726918577620,0.0275319,63155.0,63154.0,1.29897856]
[1726918579051,0.010825,63155.0,63154.0,1.29897856]
[1726918579328,0.02747318,63155.0,63154.0,1.29897856]
[1726918582128,0.02745607,63155.0,63154.0,1.29897856]
[1726918582356,0.02745605,63155.0,63154.0,1.29897856]
[1726918586113,0.02744772,63155.0,63154.0,1.29897856]
[1726918588893,0.010825,63155.0,63154.0,1.29897856]
[1726918589113,0.02744387,63155.0,63154.0,1.29897856]
[1726918590046,0.010825,63155.0,63154.0,1.29897856]
[1726918590276,0.027433,63155.0,63154.0,1.29897856]
[1726918591419,0.027433,63155.0,63154.0,1.20297856]
[1726918591648,0.0749782,63155.0,63154.0,1.20297856]
[1726918592590,0.07497999,63155.0,63154.0,1.20297856]
[1726918593486,0.027433,63155.0,63154.0,1.20297856]
[1726918593697,0.0749798,63155.0,63154.0,1.20297856]
[1726918594153,0.027433,63155.0,63154.0,1.20297856]
[1726918594614,0.0749798,63155.0,63154.0,1.20297856]
[1726918595117,0.027433,63155.0,63154.0,1.20297856]
[1726918595591,0.010825,63155.0,63154.0,1.20297856]
[1726918595788,0.0583718,63155.0,63154.0,1.20297856]
[1726918597973,0.07499774,63155.0,63154.0,1.20297856]
[1726918598403,0.02745094,63155.0,63154.0,1.20297856]
[1726918598928,0.010825,63155.0,63154.0,1.20297856]
[1726918599844,0.0583718,63155.0,63154.0,1.20297856]
[1726918600274,0.010825,63155.0,63154.0,1.20297856]
[1726918600487,0.05837294,63155.0,63154.0,1.20297856]
[1726918600713,0.010825,63155.0,63154.0,1.20297856]
[1726918600943,0.02745713,63155.0,63154.0,1.20297856]
[1726918601189,0.07500507,63155.0,63154.0,0.88629256]
[1726918601653,0.07500507,63155.0,63154.0,1.20297856]
[1726918601890,0.02745713,63155.0,63154.0,1.20297856]
[1726918602355,0.07500386,63155.0,63154.0,1.20297856]
[1726918603082,0.07499551,63155.0,63154.0,1.20297856]
[1726918604205,0.02744878,63155.0,63154.0,1.20297856]
[1726918605604,0.07499551,63155.0,63154.0,1.20297856]
[1726918606594,0.02744878,63155.0,63154.0,1.20297856]
[1726918610114,0.02744878,63155.0,63154.0,0.88629256]
[1726918610839,0.02744878,63155.0,63154.0,1.20297856]
[1726918612203,0.02744878,63155.0,63154.0,0.88629256]
[1726918612674,0.010825,63155.0,63154.0,0.88629256]
[1726918612970,0.02743362,63155.0,63154.0,0.88629256]
[1726918616492,0.010825,63155.0,63154.0,0.88629256]
[1726918616764,0.02742496,63155.0,63154.0,0.88629256]
[1726918619633,0.02743702,63155.0,63154.0,0.88629256]
[1726918622201,0.010825,63155.0,63154.0,0.88629256]
[1726918622206,0.02742668,63155.0,63154.0,0.88629256]
[1726918625413,0.02743756,63155.0,63154.0,0.88629256]
[1726918625930,0.02743756,63155.0,63154.0,0.98259256]
[1726918626908,0.02743756,63155.0,63154.0,1.29927856]
[1726918627143,0.02743756,63155.0,63154.0,0.98259256]
[1726918628028,0.07131074,63160.0,63154.0,0.98259256]
[1726918628029,0.04711379,63160.0,63159.0,0.15833]
[1726918628245,0.04711379,63160.0,63159.0,0.474991]
[1726918628489,0.04711379,63160.0,63159.0,0.488897]
[1726918629406,0.05711379,63160.0,63159.0,0.805558]
[1726918629649,0.01,63160.0,63159.0,0.805558]
[1726918629907,0.021,63160.0,63159.0,0.805558]
[1726918637467,0.09231953,63160.0,63159.0,0.805558]
[1726918639538,0.09231953,63160.0,63159.0,1.122219]
[1726918639789,0.06854331,63160.0,63159.0,1.122219]
[1726918640002,0.08499588,63160.0,63159.0,1.122219]
[1726918640489,0.02745257,63160.0,63159.0,1.122219]
[1726918640729,0.02527757,63160.0,63159.0,1.123219]
[1726918641696,0.012825,63160.0,63159.0,1.123219]
[1726918641928,0.02923006,63160.0,63159.0,1.123219]
[1726918642390,0.02123006,63160.0,63159.0,1.122219]
[1726918642610,0.02523006,63160.0,63159.0,1.122219]
[1726918648570,0.02521191,63160.0,63159.0,1.122219]
[1726918654188,0.02521313,63160.0,63159.0,1.122219]
[1726918657694,0.008825,63160.0,63159.0,1.122219]
[1726918658421,0.008825,63160.0,63159.0,1.214519]
[1726918658899,0.000825,63160.0,63159.0,1.214519]
[1726918659362,0.006825,63160.0,63159.0,1.214519]
[1726918659601,0.003825,63160.0,63159.0,1.214519]
[1726918659826,0.000825,63160.0,63159.0,1.214519]
[1726918660293,0.001825,63160.0,63159.0,1.214519]
[1726918666197,0.001825,63160.0,63159.0,1.33599868]
[1726918675581,0.001825,63160.0,63159.0,1.65265968]
[1726918676959,0.001825,63160.0,63159.0,1.65665968]
[1726918677706,0.000825,63160.0,63159.0,1.65665968]
[1726918677933,0.000825,63160.0,63159.0,1.66065968]
[1726918689875,0.000825,63160.0,63159.0,1.82371335]
[1726918693528,0.000825,63160.0,63159.0,2.14037435]
[1726918699612,0.000825,63160.0,63159.0,2.18768001]
[1726918699855,0.000825,63160.0,63159.0,2.14037435]
[1726918700559,0.000825,63160.0,63159.0,2.18768001]
[1726918700792,0.000825,63160.0,63159.0,2.14037435]
[1726918703181,0.000825,63160.0,63159.0,1.82371335]
[1726918705750,0.000825,63160.0,63159.0,1.87101901]
[1726918706937,0.000825,63160.0,63159.0,1.82371335]
[1726918709804,0.000825,63160.0,63159.0,1.81571335]
[1726918710337,0.002825,63160.0,63159.0,1.82971335]
[1726918711689,0.002825,63160.0,63159.0,1.92971335]
[1726918713321,0.002825,63160.0,63159.0,1.94369071]
[1726918714221,0.002825,63160.0,63159.0,1.99100225]
[1726918714453,0.002825,63160.0,63159.0,1.94369071]
[1726918715334,0.002825,63160.0,63159.0,1.99100225]
[1726918716220,0.002825,63160.0,63159.0,1.92971335]
[1726918716720,0.002825,63160.0,63159.0,1.94369238]
[1726918718757,0.002825,63160.0,63159.0,1.99100392]
[1726918719235,0.002825,63160.0,63159.0,1.94369238]
[1726918719475,0.002825,63160.0,63159.0,1.99101479]
[1726918719952,0.002825,63160.0,63159.0,1.97703576]
[1726918720194,0.002825,63160.0,63159.0,1.99101406]
[1726918720677,0.002825,63160.0,63159.0,1.82221246]
[1726918720916,0.002825,63160.0,63159.0,1.85139214]
[1726918721319,0.002825,63160.0,63159.0,1.83741335]
[1726918724621,0.002825,63160.0,63159.0,1.88473527]
[1726918724845,0.002825,63160.0,63159.0,1.90139541]
[1726918728203,0.002825,63160.0,63159.0,1.90140964]
[1726918728653,0.002825,63160.0,63159.0,1.85407349]
[1726918731586,0.002825,63160.0,63159.0,1.83741335]
[1726918732950,0.001825,63160.0,63159.0,1.8777495]
[1726918733206,0.001825,63160.0,63159.0,1.8827495]
[1726918733424,0.000825,63160.0,63159.0,1.82341335]
[1726918733662,0.000825,63160.0,63159.0,1.82741335]
[1726918733887,0.001825,63160.0,63159.0,1.83341335]
[1726918734334,0.001825,63160.0,63159.0,1.82941335]
[1726918734571,0.002825,63160.0,63159.0,1.83441335]
[1726918735959,0.002825,63160.0,63159.0,1.8817495]
[1726918736428,0.002825,63160.0,63159.0,1.88176276]
[1726918737137,0.002825,63160.0,63159.0,1.83441335]
[1726918737789,0.002825,63160.0,63159.0,1.67135968]
[1726918751090,0.092925,63160.0,63159.0,1.133219]
[1726918751322,0.10954589,63160.0,63159.0,1.133219]
[1726918752221,0.10948022,63160.0,63159.0,1.133219]
[1726918755005,0.10948022,63160.0,63159.0,1.25469868]
[1726918755221,0.10848022,63160.0,63159.0,1.24869868]
[1726918755453,0.10845509,63160.0,63159.0,1.24969868]
[1726918755891,0.10745509,63160.0,63159.0,1.24369868]
[1726918756095,0.10945509,63160.0,63159.0,1.24369868]
[1726918756747,0.002825,63160.0,63159.0,1.24369868]
[1726918757618,0.004825,63160.0,63159.0,1.24369868]
[1726918764897,0.002825,63160.0,63159.0,1.24369868]
[1726918765121,0.000825,63160.0,63159.0,1.24869868]
[1726918765361,0.000825,63160.0,63159.0,1.25269868]
[1726918770042,0.000825,63160.0,63159.0,1.24369868]
[1726918771407,0.000825,63160.0,63159.0,1.24669868]
[1726918775738,0.000825,63160.0,63159.0,1.24569868]
[1726918776374,0.000825,63160.0,63159.0,1.24369868]
[1726918776591,0.000825,63160.0,63159.0,1.24469868]
[1726918779933,0.01738889,63160.0,63159.0,1.24469868]
[1726918780141,0.000825,63160.0,63159.0,1.24469868]
[1726918780361,0.01739186,63160.0,63159.0,1.24469868]
[1726918780575,0.000825,63160.0,63159.0,1.24469868]
[1726918782642,0.01739089,63160.0,63159.0,1.24469868]
[1726918782860,0.000825,63160.0,63159.0,1.24469868]
[1726918790087,0.0173887,63160.0,63159.0,1.24469868]
[1726918791925,0.01739339,63160.0,63159.0,1.24469868]
[1726918792763,0.000825,63160.0,63159.0,1.24469868]
[1726918795612,0.01739168,63160.0,63159.0,1.24469868]
[1726918798399,0.000825,63160.0,63159.0,1.24469868]
[1726918798621,0.01738014,63160.0,63159.0,1.24469868]
[1726918800807,0.000825,63160.0,63159.0,1.24469868]
[1726918801424,0.01737174,63160.0,63159.0,1.24469868]
[1726918801623,0.000825,63160.0,63159.0,1.24469868]
[1726918808494,0.000825,63160.0,63159.0,1.23079268]
[1726918808732,0.000825,63160.0,63159.0,1.24711065]
[1726918826351,0.000825,63160.0,63159.0,1.25135364]
[1726918830271,0.000825,63160.0,63159.0,1.26807994]
[1726918831908,0.000825,63160.0,63159.0,1.26157116]
[1726918832773,0.000825,63160.0,63159.0,1.24484486]
[1726918833863,0.000825,63160.0,63159.0,1.65710586]
[1726918834307,0.000825,63160.0,63159.0,1.34044486]
[1726918834971,0.000825,63160.0,63159.0,1.65710586]
[1726918842145,0.000825,63160.0,63159.0,2.06926731]
[1726918842368,0.000825,63160.0,63159.0,2.1185367]
[1726918842605,0.000825,63160.0,63159.0,2.00025953]
[1726918842826,0.000825,63160.0,63159.0,2.31692053]
[1726918843750,0.001825,63160.0,63159.0,2.32592053]
[1726918844194,0.001825,63160.0,63159.0,2.32492053]
[1726918844484,0.001825,63160.0,63159.0,2.32592053]
[1726918844674,0.002825,63160.0,63159.0,2.33492053]
[1726918844889,0.001825,63160.0,63159.0,2.32492053]
[1726918845105,0.002825,63160.0,63159.0,2.33492053]
[1726918846437,0.002825,63160.0,63159.0,2.45307203]
[1726918846655,0.002825,63160.0,63159.0,2.45307122]
[1726918846882,0.002825,63160.0,63159.0,2.45307208]
[1726918848330,0.002825,63160.0,63159.0,2.33492053]
[1726918850488,0.002825,63160.0,63159.0,2.42939947]
[1726918854226,0.002825,63160.0,63159.0,2.33492053]
[1726918854437,0.002825,63160.0,63159.0,2.42937856]
[1726918854651,0.002825,63160.0,63159.0,2.33492053]
[1726918855102,0.002825,63160.0,63159.0,2.42937856]
[1726918855321,0.002825,63160.0,63159.0,2.33492053]
[1726918858371,0.002825,63160.0,63159.0,2.40575266]
[1726918859228,0.002825,63160.0,63159.0,2.4057519]
[1726918860328,0.002825,63160.0,63159.0,2.4037519]
[1726918862646,0.002825,63160.0,63159.0,2.40374899]
[1726918863145,0.002825,63160.0,63159.0,2.00898799]
[1726918863353,0.002825,63160.0,63159.0,1.93815953]
[1726918864290,0.002825,63160.0,63159.0,2.25482053]
[1726918864517,0.002825,63160.0,63159.0,1.93815953]
[1726918865884,0.002825,63160.0,63159.0,1.84255953]
[1726918866365,0.002825,63160.0,63159.0,2.15922053]
[1726918866613,0.002825,63160.0,63159.0,1.84255953]
[1726918867300,0.002825,63160.0,63159.0,2.15922053]
[1726918868216,0.002825,63160.0,63159.0,1.84255953]
[1726918868865,0.002825,63160.0,63159.0,2.15922053]
[1726918875438,0.002825,63160.0,63159.0,2.20645038]
[1726918876124,0.002825,63160.0,63159.0,2.15922053]
[1726918876349,0.002825,63160.0,63159.0,2.20645038]
[1726918876838,0.002825,63160.0,63159.0,2.20648315]
[1726918879072,0.002825,63160.0,63159.0,2.15922053]
[1726918880190,0.002825,63160.0,63159.0,2.20649595]
[1726918880414,0.002825,63160.0,63159.0,2.15922053]
[1726918881604,0.002825,63160.0,63159.0,2.23011446]
[1726918881827,0.002825,63160.0,63159.0,2.23014138]
[1726918882271,0.002825,63160.0,63159.0,2.15922053]
[1726918882488,0.002825,63160.0,63159.0,2.23014138]
[1726918884783,0.002825,63160.0,63159.0,2.23016138]
[1726918885777,0.002825,63160.0,63159.0,2.15922053]
[1726918885994,0.001825,63160.0,63159.0,2.15022053]
[1726918886207,0.002825,63160.0,63159.0,2.15822053]
[1726918886435,0.002825,63160.0,63159.0,2.25278167]
[1726918886677,0.001825,63160.0,63159.0,2.24478167]
[1726918886920,0.000825,63160.0,63159.0,2.14022053]
[1726918887156,0.002825,63160.0,63159.0,2.03574085]
[1726918887386,0.001825,63160.0,63159.0,2.24278167]
[1726918887860,0.002825,63160.0,63159.0,2.25178167]
[1726918888337,0.002825,63160.0,63159.0,1.81364099]
[1726918888568,0.002825,63160.0,63159.0,1.84055953]
[1726918890689,0.002825,63160.0,63159.0,2.15722053]
[1726918890911,0.002825,63160.0,63159.0,2.25178167]
[1726918891388,0.002825,63160.0,63159.0,1.935178]
[1726918891856,0.002825,63160.0,63159.0,1.65064465]
[1726918892093,0.002825,63160.0,63159.0,1.74847273]
[1726918892558,0.002825,63160.0,63159.0,1.67750586]
[1726918893774,0.002825,63160.0,63159.0,1.74847742]
[1726918895992,0.002825,63160.0,63159.0,1.74848696]
[1726918902441,0.002825,63160.0,63159.0,1.67750586]
[1726918905415,0.002825,63160.0,63159.0,1.77214732]
[1726918905622,0.002825,63160.0,63159.0,1.77219113]
[1726918906843,0.002825,63160.0,63159.0,1.67750586]
[1726918907054,0.002825,63160.0,63159.0,1.77219113]
[1726918907255,0.002825,63160.0,63159.0,1.67750586]
[1726918907461,0.002825,63160.0,63159.0,1.77219641]
[1726918908090,0.002825,63160.0,63159.0,1.67750586]
[1726918910409,0.002825,63160.0,63159.0,1.79588421]
[1726918911056,0.002825,63160.0,63159.0,1.67750586]
[1726918911487,0.002825,63160.0,63159.0,1.79588421]
[1726918915415,0.002825,63160.0,63159.0,1.79590619]
[1726918918065,0.002825,63160.0,63159.0,1.67750586]
[1726918918295,0.002825,63160.0,63159.0,1.79590619]
[1726918918971,0.002825,63160.0,63159.0,1.99416686]
[1726918919192,0.002825,63160.0,63159.0,1.79590619]
[1726918919677,0.002825,63160.0,63159.0,2.11256719]
[1726918920138,0.002825,63160.0,63159.0,2.11256721]
[1726918920384,0.002825,63160.0,63159.0,2.27562088]
[1726918920663,0.002825,63160.0,63159.0,2.15722053]
[1726918925116,0.084525,63168.0,63167.0,1.424794]